[Event "SWE-ch Masters Elite 2018"]
[Site "Ronneby"]
[Date "2018.07.01"]
[Round "2"]
[White "Lindh, Fredrik"]
[Black "Wiedenkeller, Michael"]
[Result "0-1"]
[ECO "C11"]
[WhiteElo "2273"]
[BlackElo "2468"]
[Annotator "RC"]
[PlyCount "124"]
[EventDate "2018.06.30"]
[EventType "tourn"]
[EventCountry "SWE"]
[SourceTitle "playchess.com"]
[Source "ChessBase"]
[SourceQuality "1"]
[TimeControl "40/5400+30:1800+30"]

1. e4 {[%emt 0:00:00]} e6 {[%emt 0:00:14]} 2. d4 {[%emt 0:00:00]} d5 {[%emt 0:00:11]} 3. Nc3 {[%emt 0:00:11]} Nf6 {[%emt 0:00:28]} 4. e5 {[%emt 0:00:12]} Nfd7 {[%emt 0:00:15]} 5. f4 {[%emt 0:00:18]} c5 {[%emt 0:00:20]} 6. Nf3 {[%emt 0:00:06]} Nc6 {[%emt 0:00:24]} 7. Be3 {[%emt 0:00:10]} a6 {[%emt 0:00:41]} 8. Qd2 {[%emt 0:01:45]} b5 {[%emt 0:00:21]} 9. dxc5 {[%emt 0:01:19]} Bxc5 {[%emt 0:00:32]} 10. Bd3 {[%emt 0:03:14]} Qb6 {[%emt 0:00:56]} 11. Bxc5 {[%emt 0:00:07]} Nxc5 {[%emt 0:01:08]} 12. O-O-O {[%emt 0:02:02]} b4 {[%emt 0:09:42]} 13. Ne2 {[%emt 0:01:46]} a5 {[%emt 0:17:35]} 14. Ned4 {[%emt 0:18:56]} Nxd4 {[%emt 0:01:57]} 15. Nxd4 {[%emt 0:01:20]} Ba6 {[%emt 0:02:03]} 16. Bxa6 {[%emt 0:06:03]} Rxa6 {[%emt 0:00:28]} 17. f5 {[%emt 0:04:45]} Ne4 {[%emt 0:00:48]} 18. Qf4 {[%emt 0:00:43]} Qc7 {[%emt 0:27:02]} 19. Rhf1 {[%emt 0:13:38]} Qe7 {[%emt 0:01:48]} 20. Qg4 {[%emt 0:09:39]} g6 {[%emt 0:06:53]} 21. fxe6 {[%emt 0:01:36]} fxe6 {[%emt 0:00:07]} 22. Rd3 {[%emt 0:20:15]} Rf8 {[%emt 0:07:14]} 23. Rdf3 {[%emt 0:03:35]} Rxf3 {[%emt 0:02:57]} 24. gxf3 {[%emt 0:00:21]} Qg5+ {[%emt 0:07:39]} 25. Qxg5 {[%emt 0:00:14]} Nxg5 {[%emt 0:00:02]} 26. h4 {[%emt 0:00:50]} Nf7 {[%emt 0:00:13]} 27. f4 {[%emt 0:00:17]} Kf8 {[%emt 0:05:37]} 28. Kd2 {[%emt 0:06:13]} Nh6 {[%emt 0:01:21]} 29. Ke3 {[%emt 0:03:49]} Nf5+ {[%emt 0:01:03]} 30. Nxf5 {[%emt 0:00:05]} gxf5 {[%emt 0:00:09]} 31. Kd3 {[%emt 0:01:25]} Rc6 {[%emt 0:00:20]} 32. c3 {[%emt 0:00:34]} bxc3 {[%emt 0:01:27]} 33. bxc3 {[%emt 0:00:02]} Rc4 {[%emt 0:00:39]} 34. Rf2 {[%emt 0:00:58]} h5 {[%emt 0:03:14]} 35. Rf3 {[%emt 0:00:26]} Ke8 {[%emt 0:00:13]} 36. Kc2 {[%emt 0:00:32]} Kd7 {[%emt 0:00:44]} 37. Kb3 {[%emt 0:00:05]} a4+ {[%emt 0:00:29]} 38. Kb2 {[%emt 0:00:20]} Kc6 {[%emt 0:00:17]} 39. Rf2 {[%emt 0:00:45]} Kc5 {[%emt 0:01:07]} 40. Rf1 {[%emt 0:00:36]} Re4 {[%emt 0:00:29]} 41. Rf3 {[%emt 0:08:18]} Rc4 {[%emt 0:11:49]} 42. Rf1 {[%emt 0:04:00]} Re4 {[%emt 0:01:07]} 43. Rf3 {[%emt 0:00:42]} Re2+ {[%emt 0:00:11]} 44. Ka3 {[%emt 0:01:03]} Rg2 {[%emt 0:01:12]} 45. Kxa4 {[%emt 0:03:36]} Rxa2+ {[%emt 0:00:08]} 46. Kb3 {[%emt 0:00:05]} Rg2 {[%emt 0:00:43]} 47. Rf1 {[%emt 0:01:10]} Rg4 {[%emt 0:03:53]} 48. Ra1 {[%emt 0:00:49]} Rxf4 {[%emt 0:01:46]} 49. Ra6 {[%emt 0:00:06]} Rxh4 {[%emt 0:05:32]} 50. Rxe6 {[%emt 0:00:18]} d4 {[%emt 0:01:14]} 51. Rd6 {[%emt 0:08:44]} dxc3 {[%emt 0:01:37]} 52. Kxc3 {[%emt 0:00:08]} Re4 {[%emt 0:01:06]} 53. Rh6 {[%emt 0:00:16]} Kd5 {[%emt 0:00:23]} 54. Rxh5 {[%emt 0:00:33]} Kxe5 {[%emt 0:00:15]} 55. Kd3 {[%emt 0:00:11]} Kf4 {[%emt 0:00:33]} 56. Rh1 {[%emt 0:07:44]} Re3+ {[%emt 0:00:38]} 57. Kd2 {[%emt 0:00:05]} Re5 {[%emt 0:01:01]} 58. Rf1+ {[%emt 0:00:39]} Kg3 {[%emt 0:00:59]} 59. Rg1+ {[%emt 0:01:02]} Kf2 {[%emt 0:00:52]} 60. Rg5 {[%emt 0:00:33]} Re2+ {[%emt 0:00:38]} 61. Kd1 {[%emt 0:00:05]} f4 {[%emt 0:00:44]} 62. Rg6 {[%emt 0:01:01]} f3 {[%emt 0:00:13]} 0-1

[Event "SWE-ch Masters Elite 2018"]
[Site "Ronneby"]
[Date "2018.07.01"]
[Round "2"]
[White "Logdahl, Harald"]
[Black "Landgren, Andreas"]
[Result "1/2-1/2"]
[ECO "B26"]
[WhiteElo "2249"]
[BlackElo "2278"]
[Annotator "NA"]
[PlyCount "112"]
[EventDate "2018.06.30"]
[EventType "tourn"]
[EventCountry "SWE"]
[SourceTitle "playchess.com"]
[Source "ChessBase"]
[SourceQuality "1"]
[TimeControl "40/5400+30:1800+30"]

1. e4 {[%emt 0:00:00]} c5 {[%emt 0:00:00]} 2. Nc3 {[%emt 0:00:03]} Nc6 {[%emt 0:00:00]} 3. g3 {[%emt 0:00:12]} g6 {[%emt 0:00:02]} 4. Bg2 {[%emt 0:00:06]} Bg7 {[%emt 0:00:08]} 5. d3 {[%emt 0:00:05]} d6 {[%emt 0:00:08]} 6. Nge2 {[%emt 0:02:02]} e5 {[%emt 0:00:09]} 7. O-O {[%emt 0:02:02]} Nge7 {[%emt 0:00:08]} 8. Be3 {[%emt 0:04:37]} O-O {[%emt 0:01:00]} 9. Qd2 {[%emt 0:00:26]} Nd4 {[%emt 0:05:23]} 10. a3 {[%emt 0:02:10] B26: Closed Sicilian: 3 g3, lines with early Be3} Bg4 $146 {[%emt 0:11:21]} ({Predecessor:} 10... Bh3 11. Nxd4 Bxg2 12. Nc6 bxc6 13. Kxg2 f5 14. Rad1 Rb8 {½-½ (64) Heyken,E (2410)-Jasnikowski,Z (2455) Germany 1992}) 11. f3 {[%emt 0:01:02]} Be6 {[%emt 0:00:06]} 12. f4 {[%emt 0:16:38]} Qd7 {[%emt 0:02:18]} 13. Rf2 {[%emt 0:05:42]} Rac8 {[%emt 0:12:05]} 14. Raf1 {[%emt 0:02:36]} b5 {[%emt 0:07:34]} 15. f5 {[%emt 0:32:33]} gxf5 {[%emt 0:00:35]} 16. Bh6 {[%emt 0:02:31]} f6 {[%emt 0:14:12]} 17. Bxg7 {[%emt 0:05:14]} Kxg7 {[%emt 0:00:23]} 18. Nd5 {[%emt 0:05:40]} Nxe2+ {[%emt 0:23:20]} 19. Qxe2 {[%emt 0:01:08]} f4 {[%emt 0:06:50]} 20. Nxe7 {[%emt 0:02:29]} Qxe7 {[%emt 0:00:59]} 21. gxf4 $11 {[%emt 0:00:09]} Kh8 {[%emt 0:02:50]} 22. Qh5 {[%emt 0:01:22]} Qg7 {[%emt 0:03:03]} 23. fxe5 {[%emt 0:04:51]} fxe5 {[%emt 0:00:56]} 24. Rxf8+ {[%emt 0:00:51]} Rxf8 {[%emt 0:00:02]} 25. Rxf8+ {[%emt 0:00:18]} Qxf8 {[%emt 0:00:01]} 26. Qg5 {[%emt 0:02:14]} Qf4 {[%emt 0:01:29]} 27. Qxf4 {[%emt 0:01:09]} exf4 {[%emt 0:00:02]} 28. Kf2 {[%emt 0:00:41]} Bg4 {[%emt 0:03:01]} 29. Bf3 {[%emt 0:00:11]} Be6 {[%emt 0:02:01]} 30. Bd1 {[%emt 0:02:00]} Bf7 {[%emt 0:00:07]} 31. Bg4 {[%emt 0:00:51]} Ba2 {[%emt 0:02:00]} 32. c3 {[%emt 0:01:25]} Bb1 {[%emt 0:02:27]} 33. Be2 {[%emt 0:00:32]} c4 {[%emt 0:00:24]} 34. dxc4 {[%emt 0:00:05]} bxc4 {[%emt 0:00:04]} 35. Kf3 {[%emt 0:00:19]} Bd3 {[%emt 0:00:09]} 36. Bd1 {[%emt 0:00:54]} Kg7 {[%emt 0:00:04]} 37. Kxf4 {[%emt 0:00:18]} Kf6 {[%emt 0:00:01]} 38. b4 {[%emt 0:01:11]} cxb3 {[%emt 0:02:03]} 39. Bxb3 {[%emt 0:00:06]} Bb1 {[%emt 0:00:04]} 40. Bg8 {[%emt 0:00:37]} h6 {[%emt 0:00:10]} 41. Bd5 {[%emt 0:30:15]} Bc2 {[%emt 0:31:20]} 42. c4 {[%emt 0:00:34]} a5 {[%emt 0:01:29]} 43. h3 {[%emt 0:00:00]} Bd3 {[%emt 0:00:00]} 44. h4 {[%emt 0:00:00]} Bc2 {[%emt 0:00:00]} 45. Bc6 {[%emt 0:00:00]} Bd3 {[%emt 0:00:00]} 46. Bb5 {[%emt 0:00:00]} Bc2 {[%emt 0:00:00]} 47. Ba6 {[%emt 0:00:00]} Bb3 {[%emt 0:00:00]} 48. Bb5 {[%emt 0:00:00]} Bc2 {[%emt 0:00:00]} 49. Bc6 {[%emt 0:00:00]} Bd3 {[%emt 0:00:00]} 50. Bd5 {[%emt 0:00:00]} Bc2 {[%emt 0:00:00]} 51. Bb7 {[%emt 0:00:00]} Bd3 {[%emt 0:00:00]} 52. Ba6 {[%emt 0:00:44]} Bc2 {[%emt 0:00:00]} 53. Bb5 {[%emt 0:00:10]} Bb3 {[%emt 0:00:00]} 54. Ba6 {[%emt 0:01:28]} Bc2 {[%emt 0:00:00]} 55. Bb5 {[%emt 0:01:58]} Bb3 {[%emt 0:00:00]} 56. Ba6 {[%emt 0:03:54] Ke5+} Bc2 1/2-1/2

[Event "SWE-ch Masters Elite 2018"]
[Site "Ronneby"]
[Date "2018.07.01"]
[Round "2"]
[White "Lind, Jan Olov"]
[Black "Rydstrom, Tom"]
[Result "0-1"]
[ECO "C54"]
[WhiteElo "2234"]
[BlackElo "2314"]
[Annotator "NA"]
[PlyCount "108"]
[EventDate "2018.06.30"]
[EventType "tourn"]
[EventCountry "SWE"]
[SourceTitle "playchess.com"]
[Source "ChessBase"]
[SourceQuality "1"]
[TimeControl "40/5400+30:1800+30"]

1. e4 {[%emt 0:00:00]} e5 {[%emt 0:00:00]} 2. Nf3 {[%emt 0:00:00]} Nc6 {[%emt 0:00:00]} 3. Bc4 {[%emt 0:00:01]} Bc5 {[%emt 0:00:38]} 4. c3 {[%emt 0:00:13]} Nf6 {[%emt 0:00:11]} 5. d4 {[%emt 0:00:14]} exd4 {[%emt 0:00:05]} 6. cxd4 {[%emt 0:00:06]} Bb4+ {[%emt 0:00:03]} 7. Nc3 {[%emt 0:00:21]} Nxe4 {[%emt 0:00:23]} 8. O-O {[%emt 0:00:14]} Bxc3 {[%emt 0:00:03]} 9. d5 {[%emt 0:00:26]} Bf6 {[%emt 0:00:03]} 10. Re1 {[%emt 0:00:21]} Ne7 {[%emt 0:00:09]} 11. Rxe4 {[%emt 0:00:11]} d6 {[%emt 0:00:06]} 12. Bg5 {[%emt 0:00:28]} Bxg5 {[%emt 0:00:46]} 13. Nxg5 {[%emt 0:00:12]} h6 {[%emt 0:00:33]} 14. Qh5 {[%emt 0:34:18]} O-O {[%emt 0:00:42] C54: Giuoco Piano: 4 c3 Nf6, main lines with 5 d4 and 5 d3} 15. Rae1 {[%emt 0:06:19] LiveBook: 3 Games} Ng6 {[%emt 0:08:31]} (15... Nf5 16. Nxf7 Qf6 17. Rf4 Bd7 18. g4 Qxf7 19. Qxf7+ Rxf7 20. gxf5 Rxf5 21. Rxf5 Bxf5 22. Re7 {0-1 (50) Shvartsman,A (2261)-Moradiabadi,E (2542) Herndon 2012}) 16. Ne6 $1 {[%emt 0:11:05]} fxe6 {[%emt 0:09:53]} 17. Qxg6 {[%emt 0:17:11]} e5 {[%emt 0:01:08]} 18. R4e3 {[%emt 0:03:47]} Qf6 {[%emt 0:06:09]} 19. Qg3 $146 {[%emt 0:02:55]} ({Predecessor:} 19. Qc2 Bd7 20. Rc1 Rae8 21. Qe2 Kh8 22. Rb3 {½-½ (22) Oliva,J-Voller,O Bratislava 1993}) 19... Qf4 {[%emt 0:05:40]} 20. Bb3 {[%emt 0:03:04]} Qxg3 {[%emt 0:23:50]} 21. hxg3 {[%emt 0:00:07]} Bf5 {[%emt 0:00:07]} 22. Rc1 {[%emt 0:02:25]} Rf7 {[%emt 0:00:33]} 23. Rec3 {[%emt 0:01:07]} Rc8 {[%emt 0:00:04]} 24. Bd1 {[%emt 0:09:31]} Kf8 {[%emt 0:02:09]} 25. Ra3 {[%emt 0:00:48]} a6 {[%emt 0:01:50]} 26. Rb3 {[%emt 0:00:24]} c5 {[%emt 0:18:36]} 27. dxc6 {[%emt 0:00:17]} Rxc6 {[%emt 0:02:22]} 28. Rxc6 {[%emt 0:00:12]} bxc6 {[%emt 0:00:01]} 29. Rb6 {[%emt 0:00:47]} Rc7 {[%emt 0:00:40]} 30. Rxa6 {[%emt 0:00:41]} Ke7 {[%emt 0:00:07]} 31. Bb3 {[%emt 0:00:46]} d5 {[%emt 0:02:27]} 32. Ra8 {[%emt 0:01:26]} Rb7 {[%emt 0:08:07]} 33. Kf1 {[%emt 0:01:03]} Be6 {[%emt 0:01:44]} 34. Ke1 {[%emt 0:00:26]} c5 {[%emt 0:00:25]} 35. Bd1 {[%emt 0:03:53]} Rxb2 {[%emt 0:00:07]} 36. Ra7+ {[%emt 0:00:14]} Kf8 {[%emt 0:03:51]} 37. a4 {[%emt 0:00:41]} c4 {[%emt 0:01:23]} 38. a5 {[%emt 0:00:36]} Ra2 {[%emt 0:01:13]} 39. a6 {[%emt 0:00:20]} d4 {[%emt 0:00:53]} 40. g4 {[%emt 0:02:09]} c3 {[%emt 0:00:58]} 41. g5 {[%emt 0:03:23]} Ra1 {[%emt 0:02:59]} 42. Rc7 {[%emt 0:00:50]} Rxa6 {[%emt 0:03:21]} 43. gxh6 {[%emt 0:00:13]} gxh6 {[%emt 0:00:06]} 44. Rc5 {[%emt 0:00:20]} Ra1 {[%emt 0:00:10]} 45. Ke2 {[%emt 0:01:26]} Kf7 {[%emt 0:00:25]} 46. Bc2 $19 {[%emt 0:01:19]} Ra2 {[%emt 0:03:01]} 47. Kd1 {[%emt 0:01:07]} d3 {[%emt 0:03:11]} 48. Bxd3 {[%emt 0:00:26]} Rd2+ {[%emt 0:00:03]} 49. Ke1 {[%emt 0:00:17]} Rxd3 {[%emt 0:00:02]} 50. Ke2 {[%emt 0:00:10]} e4 {[%emt 0:00:28]} 51. f3 {[%emt 0:00:58]} Rd2+ {[%emt 0:00:14]} 52. Ke3 {[%emt 0:00:10]} Rxg2 {[%emt 0:00:04]} 53. Rxc3 {[%emt 0:00:30]} exf3 {[%emt 0:01:13]} 54. Kxf3 {[%emt 0:00:11]} Rg5 {[%emt 0:00:02]} 0-1

[Event "SWE-ch Masters Elite 2018"]
[Site "Ronneby"]
[Date "2018.07.03"]
[Round "4"]
[White "Wiedenkeller, Michael"]
[Black "Rydstrom, Tom"]
[Result "1-0"]
[ECO "D20"]
[WhiteElo "2465"]
[BlackElo "2307"]
[Annotator "ChessBase"]
[PlyCount "89"]
[EventDate "2018.06.30"]
[EventType "tourn"]
[EventCountry "SWE"]
[SourceTitle "playchess.com"]
[Source "ChessBase"]
[SourceQuality "1"]
[TimeControl "40/5400+30:1800+30"]

1. d4 {[%emt 0:00:00]} d5 {[%emt 0:00:00]} 2. c4 {[%emt 0:00:00]} dxc4 {[%emt 0:00:00]} 3. e4 {[%emt 0:00:52]} e5 {[%emt 0:00:11]} 4. Nf3 {[%emt 0:00:54]} exd4 {[%emt 0:00:17]} 5. Qxd4 {[%emt 0:06:39]} Qxd4 {[%emt 0:01:18]} 6. Nxd4 {[%emt 0:00:07]} a6 {[%emt 0:01:09]} 7. Bxc4 {[%emt 0:00:48]} c5 {[%emt 0:01:00]} 8. Nc2 {[%emt 0:02:58]} Nf6 {[%emt 0:03:52]} 9. Nc3 {[%emt 0:07:12]} b5 {[%emt 0:05:45]} 10. Bd5 {[%emt 0:05:53]} Ra7 {[%emt 0:01:43]} 11. Bf4 {[%emt 0:00:51]} Nbd7 {[%emt 0:03:29]} 12. Bc6 {[%emt 0:06:21]} Bb7 {[%emt 0:00:31]} 13. Bb8 {[%emt 0:06:14]} Bxc6 {[%emt 0:08:03]} 14. Bxa7 {[%emt 0:00:08]} b4 {[%emt 0:00:02]} 15. Nd5 {[%emt 0:05:23]} Bxd5 {[%emt 0:06:53]} 16. exd5 {[%emt 0:02:41]} Kd8 {[%emt 0:00:05]} 17. a4 {[%emt 0:18:21]} Kc7 {[%emt 0:10:42]} 18. a5 {[%emt 0:00:31]} Kb7 {[%emt 0:00:16]} 19. Bb6 {[%emt 0:00:47]} Nxb6 {[%emt 0:00:42]} 20. axb6 {[%emt 0:00:08]} Nxd5 {[%emt 0:00:04]} 21. O-O-O {[%emt 0:03:07]} Nxb6 {[%emt 0:08:45]} 22. Rhe1 {[%emt 0:02:16]} g6 {[%emt 0:00:27]} 23. f4 {[%emt 0:01:29]} Kc6 {[%emt 0:01:44]} 24. Rd8 {[%emt 0:05:31]} Bg7 {[%emt 0:00:10]} 25. Rxh8 {[%emt 0:00:37]} Bxh8 {[%emt 0:00:03]} 26. Re8 {[%emt 0:06:24]} Bf6 {[%emt 0:00:36]} 27. Ne3 {[%emt 0:01:45]} a5 {[%emt 0:22:45]} 28. Ng4 {[%emt 0:01:41]} Bd4 {[%emt 0:01:25]} 29. Ne5+ {[%emt 0:01:38]} Kb5 {[%emt 0:05:03]} 30. Nf3 {[%emt 0:04:05]} Bf6 {[%emt 0:11:24]} 31. Rf8 {[%emt 0:00:58]} a4 {[%emt 0:00:28]} 32. Rxf7 {[%emt 0:00:22]} Nd5 {[%emt 0:00:23]} 33. Ne5 {[%emt 0:01:26]} c4 {[%emt 0:01:51]} 34. Rb7+ {[%emt 0:00:58]} Ka6 {[%emt 0:00:48]} 35. Rd7 {[%emt 0:00:25]} Nb6 {[%emt 0:05:04]} 36. Rd6 {[%emt 0:00:30]} Be7 {[%emt 0:00:24]} 37. Re6 {[%emt 0:00:21]} a3 {[%emt 0:00:37]} 38. bxa3 {[%emt 0:00:29]} bxa3 {[%emt 0:00:29]} 39. Rxe7 {[%emt 0:02:46]} c3 {[%emt 0:00:04]} 40. Nc6 {[%emt 0:01:54]} Nd5 {[%emt 0:00:53]} 41. Re2 {[%emt 0:32:02]} Kb5 {[%emt 0:30:03]} 42. Nd4+ {[%emt 0:00:28]} Kc4 {[%emt 0:00:04]} 43. Nc2 {[%emt 0:00:37]} a2 {[%emt 0:00:57]} 44. Re4+ {[%emt 0:00:29]} Kd3 {[%emt 0:01:00]} 45. Rd4+ 1-0

[Event "SWE-ch Masters Elite 2018"]
[Site "Ronneby"]
[Date "2018.07.03"]
[Round "4"]
[White "Lundin, Jan"]
[Black "Malmstig, Erik"]
[Result "1/2-1/2"]
[ECO "C00"]
[WhiteElo "2282"]
[BlackElo "2336"]
[Annotator "NA"]
[PlyCount "203"]
[EventDate "2018.06.30"]
[EventType "tourn"]
[EventCountry "SWE"]
[SourceTitle "playchess.com"]
[Source "ChessBase"]
[SourceQuality "1"]
[TimeControl "40/5400+30:1800+30"]

1. e4 {[%emt 0:05:33]} e6 {[%emt 0:00:00]} 2. d3 {[%emt 0:01:41]} d5 {[%emt 0:00:20]} 3. Nd2 {[%emt 0:00:07]} e5 {[%emt 0:00:41]} 4. Ngf3 {[%emt 0:00:33]} Nc6 {[%emt 0:00:11]} 5. g3 {[%emt 0:03:06]} Nf6 {[%emt 0:00:28]} 6. Bg2 {[%emt 0:00:14]} Bc5 {[%emt 0:01:02]} 7. O-O {[%emt 0:00:24]} O-O {[%emt 0:00:14]} 8. c3 {[%emt 0:01:57]} Bb6 {[%emt 0:02:55]} 9. a4 {[%emt 0:03:10]} dxe4 {[%emt 0:07:00]} 10. dxe4 {[%emt 0:08:38]} Re8 {[%emt 0:04:22]} 11. Qe2 {[%emt 0:01:26]} Bg4 $14 {[%emt 0:03:46]} 12. Nc4 {[%emt 0:01:46]} Qc8 {[%emt 0:05:07]} 13. a5 {[%emt 0:13:31]} Bc5 {[%emt 0:00:19]} 14. b4 {[%emt 0:00:46]} Bf8 {[%emt 0:00:54]} 15. a6 {[%emt 0:02:56]} bxa6 {[%emt 0:03:32]} 16. Re1 {[%emt 0:01:52]} Rb8 {[%emt 0:15:29]} 17. Qa2 {[%emt 0:02:07]} a5 {[%emt 0:11:42]} 18. Nxa5 {[%emt 0:16:23]} Nxa5 {[%emt 0:01:46]} 19. Qxa5 {[%emt 0:00:16]} c5 {[%emt 0:00:35]} 20. b5 {[%emt 0:01:40]} c4 {[%emt 0:05:19]} 21. Be3 {[%emt 0:00:45]} Bc5 {[%emt 0:04:08]} 22. Nd2 {[%emt 0:01:27]} Bxe3 {[%emt 0:03:22]} 23. Rxe3 {[%emt 0:00:09]} Rd8 {[%emt 0:00:42]} 24. Ra2 {[%emt 0:05:55]} Rd7 {[%emt 0:14:00]} 25. Bf1 {[%emt 0:02:02]} Be6 {[%emt 0:00:32]} 26. Qb4 {[%emt 0:06:35]} Qc7 {[%emt 0:04:29]} 27. Re1 {[%emt 0:01:39]} a6 {[%emt 0:01:42]} 28. Nxc4 {[%emt 0:04:37]} Rxb5 {[%emt 0:02:04]} 29. Qa4 {[%emt 0:00:20]} Rc5 {[%emt 0:00:49]} 30. Qxa6 {[%emt 0:05:51]} Bxc4 {[%emt 0:00:54]} 31. Bxc4 {[%emt 0:00:13]} h5 {[%emt 0:02:17]} 32. Ra4 {[%emt 0:05:34]} Rd6 {[%emt 0:00:41]} 33. Qa8+ {[%emt 0:00:10]} Rd8 {[%emt 0:00:12]} 34. Qa6 {[%emt 0:00:02]} Rc6 {[%emt 0:01:50]} 35. Qb5 {[%emt 0:00:52]} Rb8 {[%emt 0:02:02]} 36. Ra7 {[%emt 0:00:11]} Qxa7 {[%emt 0:00:29]} 37. Qxc6 {[%emt 0:00:13]} Rb2 {[%emt 0:01:32]} 38. Qc8+ {[%emt 0:00:21]} Kh7 {[%emt 0:00:06]} 39. Qf5+ {[%emt 0:00:20]} Kg8 {[%emt 0:00:04]} 40. Qc8+ {[%emt 0:02:33]} Kh7 {[%emt 0:00:06]} 41. Qf5+ {[%emt 0:30:43]} Kg8 {[%emt 0:30:17]} 42. Rd1 {[%emt 0:00:00]} Qc7 {[%emt 0:00:00]} 43. Ra1 {[%emt 0:00:00]} Rb8 {[%emt 0:00:00]} 44. Bd5 {[%emt 0:00:00]} Qxc3 {[%emt 0:00:00]} 45. Ra7 {[%emt 0:00:00]} Rf8 {[%emt 0:00:00]} 46. Re7 {[%emt 0:00:00]} h4 {[%emt 0:00:00]} 47. gxh4 {[%emt 0:00:00]} Nxd5 {[%emt 0:00:00]} 48. exd5 {[%emt 0:00:00]} Qd4 {[%emt 0:00:00]} 49. Rxe5 {[%emt 0:00:03]} Rd8 {[%emt 0:00:00]} 50. Kg2 {[%emt 0:01:13]} Qxh4 {[%emt 0:00:00]} 51. Re4 {[%emt 0:01:41]} Qh6 {[%emt 0:02:28]} 52. Rf4 {[%emt 0:01:05]} Rf8 {[%emt 0:00:59]} 53. h4 {[%emt 0:01:16]} Qd6 {[%emt 0:00:57]} 54. h5 {[%emt 0:00:16]} Kh8 {[%emt 0:01:18]} 55. Rd4 {[%emt 0:01:46]} Kg8 {[%emt 0:00:54]} 56. Qf4 {[%emt 0:00:36]} Qxf4 {[%emt 0:01:08]} 57. Rxf4 {[%emt 0:00:05]} Rd8 {[%emt 0:00:07]} 58. Rf5 {[%emt 0:01:13]} Kf8 {[%emt 0:01:00]} 59. Kf3 {[%emt 0:00:29]} Ke7 {[%emt 0:00:46]} 60. Ke4 {[%emt 0:00:17]} Ra8 {[%emt 0:01:03]} 61. Rf3 {[%emt 0:01:09]} Ra4+ {[%emt 0:00:26]} 62. Ke5 {[%emt 0:00:17]} Rh4 {[%emt 0:00:48]} 63. d6+ {[%emt 0:00:28]} Ke8 {[%emt 0:00:40]} 64. d7+ {[%emt 0:00:48]} Kxd7 {[%emt 0:00:07]} 65. Rxf7+ {[%emt 0:00:04]} Ke8 {[%emt 0:00:07]} 66. Rxg7 {[%emt 0:00:14]} Rxh5+ {[%emt 0:00:11]} 67. Kf6 {[%emt 0:00:32]} Rh4 {[%emt 0:00:27]} 68. Rg8+ {[%emt 0:00:17]} Kd7 {[%emt 0:00:05]} 69. Kg5 {[%emt 0:00:59]} Rh2 {[%emt 0:00:27]} 70. Rf8 {[%emt 0:00:07]} Rg2+ {[%emt 0:00:36]} 71. Kh4 {[%emt 0:00:08]} Ke7 {[%emt 0:00:15]} 72. Rf4 {[%emt 0:00:09]} Ke8 {[%emt 0:01:04]} 73. Kh3 {[%emt 0:00:13]} Rg1 {[%emt 0:00:16]} 74. Rg4 {[%emt 0:00:28]} Rh1+ {[%emt 0:00:23]} 75. Kg2 {[%emt 0:00:09]} Ra1 {[%emt 0:00:12]} 76. Rf4 {[%emt 0:00:07]} Ra3 {[%emt 0:00:28]} 77. f3 {[%emt 0:00:05]} Ra6 {[%emt 0:00:14]} 78. Rf5 {[%emt 0:00:13]} Rg6+ {[%emt 0:00:24]} 79. Kf2 {[%emt 0:00:05]} Ra6 {[%emt 0:00:13]} 80. Ke3 {[%emt 0:00:13]} Ra4 {[%emt 0:00:15]} 81. Rf4 {[%emt 0:00:17]} Ra5 {[%emt 0:00:18]} 82. Ke4 {[%emt 0:00:06]} Ke7 {[%emt 0:00:07]} 83. Rf5 {[%emt 0:00:18]} Ra4+ {[%emt 0:00:15]} 84. Ke5 {[%emt 0:00:05]} Rb4 {[%emt 0:00:21]} 85. Rg5 {[%emt 0:00:29]} Kf7 {[%emt 0:00:18]} 86. Kf5 {[%emt 0:00:42]} Ra4 {[%emt 0:00:10]} 87. Rg1 {[%emt 0:00:45]} Ra5+ {[%emt 0:00:35]} 88. Kg4 {[%emt 0:00:15]} Kf6 {[%emt 0:00:34]} 89. f4 {[%emt 0:00:11]} Ra8 {[%emt 0:00:26]} 90. Rb1 {[%emt 0:00:12]} Ra6 {[%emt 0:00:24]} 91. Rh1 {[%emt 0:00:15]} Kg7 {[%emt 0:00:22]} 92. f5 {[%emt 0:00:11]} Ra2 {[%emt 0:00:23]} 93. Rb1 {[%emt 0:01:04]} Rg2+ {[%emt 0:00:27]} 94. Kf3 {[%emt 0:00:15]} Ra2 {[%emt 0:00:11]} 95. Rb6 {[%emt 0:00:48]} Ra4 {[%emt 0:00:11]} 96. Rg6+ {[%emt 0:00:38]} Kf7 {[%emt 0:00:06]} 97. Rg4 {[%emt 0:00:37]} Ra6 {[%emt 0:00:35]} 98. Kf4 {[%emt 0:00:11]} Ra8 {[%emt 0:00:46]} 99. Rh4 {[%emt 0:00:19]} Ra1 {[%emt 0:00:46]} 100. Rg4 {[%emt 0:01:09]} Kf6 {[%emt 0:00:25]} 101. Rg6+ {[%emt 0:00:06]} Kf7 {[%emt 0:00:06]} 102. Rg3 {[%emt 0:01:51]} 1/2-1/2

[Event "SWE-ch Masters Elite 2018"]
[Site "Ronneby"]
[Date "2018.07.03"]
[Round "4"]
[White "Lindh, Fredrik"]
[Black "Landgren, Andreas"]
[Result "1/2-1/2"]
[ECO "B80"]
[WhiteElo "2273"]
[BlackElo "2278"]
[Annotator "NA"]
[PlyCount "71"]
[EventDate "2018.06.30"]
[EventType "tourn"]
[EventCountry "SWE"]
[SourceTitle "playchess.com"]
[Source "ChessBase"]
[SourceQuality "1"]
[TimeControl "40/5400+30:1800+30"]

1. e4 {[%emt 0:00:00]} c5 {[%emt 0:00:00]} 2. Nf3 {[%emt 0:00:00]} d6 {[%emt 0:00:00]} 3. d4 {[%emt 0:00:00]} cxd4 {[%emt 0:00:00]} 4. Nxd4 {[%emt 0:00:05]} Nf6 {[%emt 0:00:00]} 5. Nc3 {[%emt 0:00:07]} a6 {[%emt 0:00:03]} 6. Be3 {[%emt 0:00:18]} e6 {[%emt 0:00:07]} 7. Qf3 {[%emt 0:00:18]} Nbd7 {[%emt 0:00:13]} 8. O-O-O {[%emt 0:00:21]} Qc7 {[%emt 0:00:19]} 9. Qg3 {[%emt 0:00:23]} b5 {[%emt 0:00:39]} 10. a3 {[%emt 0:00:11]} Bb7 {[%emt 0:06:28]} 11. f3 {[%emt 0:01:31]} Rc8 {[%emt 0:01:47]} 12. Bxb5 {[%emt 0:00:42]} axb5 {[%emt 0:03:03]} 13. Ndxb5 {[%emt 0:00:07]} Qb8 {[%emt 0:10:20]} 14. Nxd6+ {[%emt 0:02:31]} Bxd6 {[%emt 0:00:15]} 15. Qxd6 {[%emt 0:00:07]} Qxd6 $11 {[%emt 0:00:33]} 16. Rxd6 {[%emt 0:00:06]} O-O {[%emt 0:09:56]} 17. Nb5 {[%emt 0:10:51]} Ne5 {[%emt 0:19:21]} 18. b3 {[%emt 0:04:33]} Ne8 {[%emt 0:01:24]} 19. Rb6 {[%emt 0:11:30]} Ba8 {[%emt 0:01:59]} 20. Rd1 {[%emt 0:18:44]} Nc7 {[%emt 0:13:47]} 21. Nxc7 {[%emt 0:31:22]} Rxc7 {[%emt 0:00:10]} 22. Bf4 {[%emt 0:00:44]} Rc6 {[%emt 0:02:54]} 23. Rxc6 {[%emt 0:01:33]} Nxc6 {[%emt 0:00:03]} 24. c4 {[%emt 0:01:40]} e5 {[%emt 0:01:53]} 25. Be3 {[%emt 0:00:07]} f5 {[%emt 0:02:17]} 26. exf5 {[%emt 0:00:34]} Rxf5 {[%emt 0:00:29]} 27. b4 {[%emt 0:01:35]} Rf8 {[%emt 0:01:46]} 28. Kc2 {[%emt 0:02:26]} e4 {[%emt 0:05:59]} 29. f4 {[%emt 0:00:48]} g5 {[%emt 0:00:46]} 30. g3 {[%emt 0:01:02]} gxf4 {[%emt 0:02:09]} 31. gxf4 {[%emt 0:01:29]} Rc8 {[%emt 0:01:18]} 32. Rd7 {[%emt 0:03:13]} Nb8 {[%emt 0:00:27]} 33. Rd4 {[%emt 0:01:44]} Nc6 {[%emt 0:00:16]} 34. Rd7 {[%emt 0:02:22]} Nb8 {[%emt 0:00:09]} 35. Rd4 {[%emt 0:01:13]} Nc6 {[%emt 0:00:06]} 36. Rd7 {[%emt 0:01:38]} 1/2-1/2